fUST/lending_fUST_20241106
["ID","MTS","AMOUNT","RATE_DAILY","PERIOD"]
[341452521,1730898642554,-500.0,0.00027397,2]
[341452522,1730898642563,-151.0,0.00027397,7]
[341452523,1730898642572,-151.0,0.00027397,7]
[341452524,1730898642582,-151.0,0.00027397,7]
[341452525,1730898642591,-500.0,0.00027397,2]
[341452526,1730898642601,-261.0609,0.00027397,7]
[341452527,1730898642610,-500.0,0.00027397,2]
[341452528,1730898642622,-500.0,0.00027397,2]
[341452529,1730898642631,-500.0,0.00027397,2]
[341452530,1730898642641,-521.49300076,0.00027397,2]
[341452531,1730898642650,-500.0,0.00027397,2]
[341452532,1730898642659,-500.0,0.00027397,2]
[341452533,1730898642669,-500.0,0.00027397,2]
[341452534,1730898642679,-512.52357782,0.00027397,2]
[341452535,1730898642689,-507.20959923,0.00027397,2]
[341452536,1730898642700,-151.0,0.00027397,7]
[341452537,1730898642713,-151.0,0.00027397,7]
[341452538,1730898642725,-500.0,0.00027397,2]
[341452539,1730898642735,-500.0,0.00027397,2]
[341452540,1730898642744,-500.0,0.00027397,2]
[341452541,1730898642754,-500.0,0.00027397,2]
[341452542,1730898642767,-503.09019801,0.00027397,2]
[341452543,1730898642776,-169.68108327,0.00027397,2]
[341452544,1730898642787,-500.0,0.00027397,2]
[341452545,1730898642797,-500.0,0.00027397,2]
[341452546,1730898642807,-500.0,0.00027397,2]
[341452547,1730898642817,-504.22749147,0.00027397,2]
[341452548,1730898642826,-307.01417764,0.00027397,2]
[341452549,1730898642836,-500.0,0.00027397,2]
[341452550,1730898642846,-500.0,0.00027397,2]
[341452551,1730898642857,-500.0,0.00027397,2]
[341452552,1730898642868,-500.0,0.00027397,2]
[341452553,1730898642877,-500.0,0.00027397,2]
[341452554,1730898642886,-500.0,0.00027397,2]
[341452555,1730898642896,-679.8,0.00027397,2]
[341452556,1730898642905,-509.26549508,0.00027397,2]
[341452557,1730898642914,-500.0,0.00027397,2]
[341452558,1730898642923,-576.9839297,0.00027397,2]
[341452559,1730898642932,-6904.55,0.00027397,2]
[341452560,1730898642941,-500.0,0.00027397,2]
[341452561,1730898642952,-1000.0,0.00027397,2]
[341452562,1730898642964,-500.0,0.00027397,2]
[341452563,1730898642973,-500.0,0.00027397,2]
[341452564,1730898642983,-503.20294273,0.00027397,2]
[341452565,1730898642992,-151.0,0.00027397,7]
[341452566,1730898643001,-151.0,0.00027397,7]
[341452567,1730898643011,-151.0,0.00027397,7]
[341452568,1730898643020,-500.0,0.00027397,2]
[341452569,1730898643030,-500.0,0.00027397,2]
[341452570,1730898643039,-500.0,0.00027397,2]
[341452571,1730898643048,-520.02456677,0.00027397,2]
[341452572,1730898643058,-500.0,0.00027397,2]
[341452573,1730898643068,-1750.39,0.00027397,2]
[341452574,1730898643077,-500.0,0.00027397,2]
[341452576,1730898643087,-612.62,0.00027397,2]
[341452577,1730898643097,-500.0,0.00027397,2]
[341452578,1730898643106,-1051.04,0.00027397,2]
[341452579,1730898643116,-500.0,0.00027397,2]
[341452580,1730898643125,-151.0,0.00027397,7]
[341452581,1730898643134,-151.0,0.00027397,7]
[341452582,1730898643144,-500.0,0.00027397,2]
[341452583,1730898643155,-500.0,0.00027397,2]
[341452584,1730898643164,-523.86963658,0.00027397,2]
[341452585,1730898643174,-500.0,0.00027397,2]
[341452586,1730898643184,-500.0,0.00027397,2]
[341452587,1730898643193,-151.0,0.00027397,7]
[341452588,1730898643202,-151.0,0.00027397,7]
[341452589,1730898643215,-151.0,0.00027397,7]
[341452590,1730898643224,-151.0,0.00027397,7]
[341452591,1730898643234,-151.0,0.00027397,7]
[341452592,1730898643244,-500.0,0.00027397,2]
[341452593,1730898643254,-151.0,0.00027397,7]
[341452594,1730898643264,-151.0,0.00027397,7]
[341452595,1730898643274,-151.0,0.00027397,7]
[341452596,1730898643284,-151.0,0.00027397,7]
[341452597,1730898643294,-290.481906,0.00027397,7]
[341452598,1730898643303,-501.58909139,0.00027397,2]
[341452599,1730898643313,-500.0,0.00027397,2]
[341452600,1730898643322,-151.0,0.00027397,7]
[341452601,1730898643331,-151.0,0.00027397,7]
[341452602,1730898643341,-532.24557625,0.00027397,2]
[341452603,1730898643350,-151.0,0.00027397,7]
[341452604,1730898643359,-151.0,0.00027397,7]
[341452605,1730898643368,-151.0,0.00027397,7]
[341452607,1730898643379,-151.0,0.00027397,7]
[341452608,1730898643388,-500.0,0.00027397,2]
[341452609,1730898643397,-500.0,0.00027397,2]
[341452610,1730898643407,-500.0,0.00027397,2]
[341452611,1730898643416,-500.0,0.00027397,2]
[341452612,1730898643425,-500.0,0.00027397,2]
[341452613,1730898643435,-151.0,0.00027397,7]
[341452614,1730898643445,-264.445248,0.00027397,7]
[341452616,1730898643455,-500.0,0.00027397,2]
[341452617,1730898643469,-500.0,0.00027397,2]
[341452618,1730898643478,-500.0,0.00027397,2]
[341452619,1730898643487,-500.0,0.00027397,2]
[341452621,1730898643496,-500.0,0.00027397,2]
[341452623,1730898643506,-500.0,0.00027397,2]
[341452625,1730898643514,-500.0,0.00027397,2]
[341452627,1730898643524,-500.0,0.00027397,2]
[341452629,1730898643533,-500.0,0.00027397,2]
[341452631,1730898643542,-500.0,0.00027397,2]
[341452632,1730898643551,-5743.15,0.00027397,2]
[341452634,1730898643562,-151.0,0.00027397,7]
[341452635,1730898643572,-500.0,0.00027397,2]
[341452636,1730898643582,-500.0,0.00027397,2]
[341452637,1730898643593,-595.6971547,0.00027397,2]
[341452638,1730898643603,-500.0,0.00027397,2]
[341452639,1730898643612,-500.0,0.00027397,2]
[341452640,1730898643622,-500.0,0.00027397,2]
[341452641,1730898643633,-500.0,0.00027397,2]
[341452642,1730898643642,-500.0,0.00027397,2]
[341452643,1730898643651,-500.0,0.00027397,2]
[341452644,1730898643661,-500.0,0.00027397,2]
[341452645,1730898643672,-500.0,0.00027397,2]
[341452646,1730898643684,-231.325429,0.00027397,7]
[341452647,1730898643695,-500.0,0.00027397,2]
[341452648,1730898643707,-500.0,0.00027397,2]
[341452649,1730898643716,-1016.99,0.00027397,2]
[341452650,1730898643726,-500.0,0.00027397,2]
[341452651,1730898643735,-500.0,0.00027397,2]
[341452652,1730898643744,-505.08451933,0.00027397,2]
[341452653,1730898643755,-151.0,0.00027397,7]
[341452654,1730898643768,-151.0,0.00027397,7]
[341452655,1730898643778,-151.0,0.00027397,7]
[341452656,1730898643788,-478.09538804,0.00027397,2]
[341452657,1730898643800,-500.0,0.00027397,2]
[341452658,1730898643811,-500.0,0.00027397,2]
[341452659,1730898643821,-568.04552787,0.00027397,2]
[341452660,1730898643831,-500.0,0.00027397,2]
[341452661,1730898643841,-500.0,0.00027397,2]
[341452662,1730898643852,-500.0,0.00027397,2]
[341452663,1730898643869,-500.0,0.00027397,2]
[341452664,1730898643878,-500.0,0.00027397,2]
[341452665,1730898643887,-500.0,0.00027397,2]
[341452666,1730898643896,-502.93889895,0.00027397,2]
[341452667,1730898643906,-506.37505722,0.00027397,2]
[341452668,1730898643915,-500.0,0.00027397,2]
[341452669,1730898643925,-511.08581343,0.00027397,2]
[341452670,1730898643935,-573.41920925,0.00027397,2]
[341452671,1730898643944,-500.0,0.00027397,2]
[341452672,1730898643954,-500.0,0.00027397,2]
[341452673,1730898643964,-501.38397602,0.00027397,2]
[341452674,1730898643973,-151.0,0.00027397,7]
[341452675,1730898643983,-500.0,0.00027397,2]
[341452676,1730898643993,-151.0,0.00027397,7]
[341452677,1730898644004,-151.0,0.00027397,7]
[341452678,1730898644015,-500.0,0.00027397,2]
[341452679,1730898644025,-500.0,0.00027397,2]
[341452680,1730898644034,-618.3,0.00027397,2]
[341452681,1730898644045,-500.0,0.00027397,2]
[341452682,1730898644054,-500.0,0.00027397,2]
[341452683,1730898644066,-500.0,0.00027397,2]
[341452684,1730898644075,-500.0,0.00027397,2]
[341452685,1730898644084,-151.0,0.00027397,7]
[341452686,1730898644094,-151.0,0.00027397,7]
[341452687,1730898644104,-151.0,0.00027397,7]
[341452688,1730898644115,-520.81378005,0.00027397,2]
[341452689,1730898644125,-151.0,0.00027397,7]
[341452690,1730898644135,-500.0,0.00027397,2]
[341452691,1730898644144,-294.171074,0.00027397,7]
[341452692,1730898644154,-294.171074,0.00027397,7]
[341452693,1730898644164,-294.171074,0.00027397,7]
[341452694,1730898644174,-500.0,0.00027397,2]
[341452695,1730898644184,-500.0,0.00027397,2]
[341452696,1730898644193,-294.171074,0.00027397,7]
[341452697,1730898644204,-500.0,0.00027397,2]
[341452698,1730898644216,-294.171074,0.00027397,7]
[341452699,1730898644226,-294.171074,0.00027397,7]
[341452700,1730898644236,-506.58745277,0.00027397,2]
[341452701,1730898644246,-500.0,0.00027397,2]
[341452702,1730898644256,-294.171074,0.00027397,7]
[341452703,1730898644364,-294.171074,0.00027397,7]
[341452704,1730898644375,-294.171074,0.00027397,7]
[341452705,1730898644385,-294.171074,0.00027397,7]
[341452706,1730898644396,-500.0,0.00027397,2]
[341452707,1730898644406,-294.171074,0.00027397,7]
[341452708,1730898644417,-294.171074,0.00027397,7]
[341452709,1730898644427,-500.0,0.00027397,2]
[341452710,1730898644438,-151.0,0.00027397,7]
[341452711,1730898644450,-151.0,0.00027397,7]
[341452712,1730898644467,-151.0,0.00027397,7]
[341452713,1730898644478,-151.0,0.00027397,7]
[341452714,1730898644489,-151.0,0.00027397,7]
[341452715,1730898644499,-500.0,0.00027397,2]
[341452716,1730898644509,-273.920298,0.00027397,7]
[341452717,1730898644520,-519.24888867,0.00027397,2]
[341452718,1730898644531,-500.0,0.00027397,2]
[341452719,1730898644541,-500.0,0.00027397,2]
[341452720,1730898644552,-500.0,0.00027397,2]
[341452721,1730898644561,-500.0,0.00027397,2]
[341452722,1730898644571,-500.0,0.00027397,2]
[341452723,1730898644580,-500.0,0.00027397,2]
[341452724,1730898644591,-500.0,0.00027397,2]
[341452725,1730898644601,-516.50382394,0.00027397,2]
[341452726,1730898644612,-370.30943339,0.00027397,2]
[341452727,1730898644622,-151.0,0.00027397,7]
[341452728,1730898644634,-637.77403834,0.00027397,2]
[341452729,1730898644645,-500.0,0.00027397,2]
[341452730,1730898644657,-155.508223,0.00027397,7]
[341452731,1730898644668,-500.0,0.00027397,2]
[341452732,1730898644677,-364.05370021,0.00027397,2]
[341452733,1730898644687,-500.0,0.00027397,2]
[341452734,1730898644696,-500.0,0.00027397,2]
[341452735,1730898644708,-500.0,0.00027397,2]
[341452736,1730898644717,-500.0,0.00027397,2]
[341452737,1730898644727,-500.0,0.00027397,2]
[341452738,1730898644736,-500.0,0.00027397,2]
[341452739,1730898644745,-500.0,0.00027397,2]
[341452740,1730898644755,-500.0,0.00027397,2]
[341452741,1730898644769,-500.0,0.00027397,2]
[341452742,1730898644778,-500.0,0.00027397,2]
[341452743,1730898644790,-500.0,0.00027397,2]
[341452744,1730898644801,-500.0,0.00027397,2]
[341452745,1730898644815,-500.0,0.00027397,2]
[341452746,1730898644826,-500.0,0.00027397,2]
[341452747,1730898644838,-500.0,0.00027397,2]
[341452748,1730898644849,-500.0,0.00027397,2]
[341452749,1730898644859,-500.0,0.00027397,2]
[341452750,1730898644868,-261.78078101,0.00027397,2]
[341452751,1730898644877,-151.0,0.00027397,7]
[341452752,1730898644888,-151.0,0.00027397,2]
[341452753,1730898644899,-151.0,0.00027397,2]
[341452754,1730898644909,-151.0,0.00027397,2]
[341452755,1730898644920,-151.0,0.00027397,2]
[341452756,1730898644930,-5825.49937447,0.000276,2]
[341452757,1730898644940,-151.0,0.000276,7]
[341452758,1730898644951,-870.30525831,0.00027661,2]
[341452759,1730898644962,-500.0,0.00027671,2]
[341452760,1730898644972,-596.56234697,0.00027671,2]
[341452761,1730898644982,-500.0,0.00027671,2]
[341452762,1730898644993,-500.0,0.00027671,2]
[341452763,1730898645003,-500.0,0.00027671,2]
[341452764,1730898645014,-221.59322181,0.00027671,2]
[341452765,1730898645024,-500.0,0.00027671,2]
[341452766,1730898645034,-151.0,0.00027671,7]
[341452767,1730898645044,-151.0,0.00027671,7]
[341452768,1730898645054,-500.0,0.00027671,2]
[341452769,1730898645063,-500.0,0.00027671,2]
[341452770,1730898645073,-500.0,0.00027671,2]
[341452771,1730898645084,-516.74791874,0.00027671,2]
[341452772,1730898645094,-500.0,0.00027671,2]
[341452773,1730898645103,-593.43821414,0.00027671,2]
[341452774,1730898645113,-506.1044494,0.00027671,2]
[341452775,1730898645122,-350.9487335,0.00027671,2]
[341452776,1730898645131,-500.0,0.00027671,2]
[341452777,1730898645142,-500.0,0.00027671,2]
[341452778,1730898645152,-500.0,0.00027671,2]
[341452779,1730898645162,-500.0,0.00027671,2]
[341452780,1730898645173,-500.0,0.00027671,2]
[341452781,1730898645182,-514.80756876,0.00027671,2]
[341452782,1730898645191,-500.0,0.00027671,2]
[341452783,1730898645201,-545.7655946,0.00027671,2]
[341452784,1730898645212,-500.0,0.00027671,2]
[341452785,1730898645222,-522.04984613,0.00027671,2]
[341452786,1730898645231,-500.0,0.00027671,2]
[341452787,1730898645241,-515.30815637,0.00027671,2]
[341452788,1730898645251,-253.923298,0.00027671,2]
[341452789,1730898645260,-603.35458812,0.00027671,2]
[341452790,1730898645270,-517.66741829,0.00027671,2]
[341452791,1730898645280,-500.0,0.00027671,2]
[341452792,1730898645290,-500.0,0.00027671,2]
[341452793,1730898645300,-446.003483,0.00027671,2]
[341452794,1730898645311,-500.0,0.00027671,2]
[341452795,1730898645321,-509.840662,0.00027671,2]
[341452796,1730898645331,-500.0,0.00027671,2]
[341452797,1730898645341,-500.0,0.00027671,2]
[341452798,1730898645351,-500.0,0.00027671,2]
[341452799,1730898645362,-536.22913478,0.00027671,2]
[341452800,1730898645372,-510.84366826,0.00027671,2]
[341452801,1730898645382,-500.0,0.00027671,2]
[341452802,1730898645392,-500.0,0.00027671,2]
[341452803,1730898645402,-500.0,0.00027671,2]
[341452804,1730898645411,-500.0,0.00027671,2]
[341452805,1730898645422,-500.0,0.00027671,2]
[341452806,1730898645433,-500.0,0.00027671,2]
[341452807,1730898645442,-500.0,0.00027671,2]
[341452808,1730898645452,-500.0,0.00027671,2]
[341452809,1730898645462,-216.01366,0.00027671,7]
[341452810,1730898645472,-216.01366,0.00027671,7]
[341452811,1730898645482,-500.0,0.00027671,2]
[341452812,1730898645493,-500.0,0.00027671,2]
[341452813,1730898645502,-500.0,0.00027671,2]
[341452814,1730898645513,-200.0,0.00027671,2]
[341452815,1730898645522,-500.0,0.00027671,2]
[341452816,1730898645532,-500.0,0.00027671,2]
[341452817,1730898645543,-500.0,0.00027671,2]
[341452818,1730898645554,-500.0,0.00027671,2]
[341452819,1730898645565,-500.0,0.00027671,2]
[341452820,1730898645575,-500.0,0.00027671,2]
[341452821,1730898645585,-506.9320964,0.00027671,2]
[341452822,1730898645595,-343.24506864,0.00027671,2]
[341452823,1730898645606,-500.0,0.00027671,2]
[341452824,1730898645616,-511.8290284,0.00027671,2]
[341452825,1730898645627,-500.0,0.00027671,2]
[341452826,1730898645637,-172.31773014,0.00027671,2]
[341452827,1730898645647,-500.0,0.00027671,2]
[341452828,1730898645657,-564.02354214,0.00027671,2]
[341452829,1730898645667,-500.0,0.00027671,2]
[341452830,1730898645678,-500.0,0.00027671,2]
[341452831,1730898645688,-500.0,0.00027671,2]
[341452832,1730898645698,-500.0,0.00027671,2]
[341452833,1730898645709,-796.51,0.00027671,2]
[341452834,1730898645720,-500.0,0.00027671,2]
[341452835,1730898645730,-508.84657638,0.00027671,2]
[341452836,1730898645740,-500.0,0.00027671,2]
[341452837,1730898645750,-151.0,0.00027671,7]
[341452838,1730898645764,-151.0,0.00027671,7]
[341452839,1730898645775,-500.0,0.00027671,2]
[341452840,1730898645786,-151.0,0.00027671,7]
[341452841,1730898645796,-531.37375211,0.00027671,2]
[341452842,1730898645808,-151.0,0.00027671,7]
[341452843,1730898645819,-151.0,0.00027671,7]
[341452844,1730898645828,-251.09854,0.00027671,7]
[341452845,1730898645840,-269.92431,0.00027671,7]
[341452846,1730898645849,-500.0,0.00027671,2]
[341452847,1730898645860,-500.0,0.00027671,2]
[341452848,1730898645870,-500.0,0.00027671,2]
[341452849,1730898645881,-500.0,0.00027671,2]
[341452850,1730898645890,-879.0,0.00027671,2]
[341452851,1730898645900,-500.0,0.00027671,2]
[341452852,1730898645910,-500.0,0.00027671,2]
[341452853,1730898645921,-500.0,0.00027671,2]
[341452854,1730898645931,-229.53920148,0.00027671,2]
[341452856,1730898645941,-585.14912009,0.00027671,2]
[341452858,1730898645950,-500.0,0.00027671,2]
[341452860,1730898645962,-500.0,0.00027671,2]
[341452861,1730898645972,-500.0,0.00027671,2]
[341452862,1730898645984,-500.0,0.00027671,2]
[341452863,1730898645994,-500.0,0.00027671,2]
[341452864,1730898646005,-500.0,0.00027671,2]
[341452865,1730898646015,-566.46822756,0.00027671,2]
[341452866,1730898646026,-633.11,0.00027671,2]
[341452867,1730898646035,-513.76526051,0.00027671,2]
[341452868,1730898646046,-214.004586,0.00027671,7]
[341452870,1730898646057,-214.004586,0.00027671,7]
[341452872,1730898646067,-214.004586,0.00027671,7]
[341452875,1730898646077,-151.0,0.00027671,7]
[341452877,1730898646088,-151.0,0.00027671,7]
[341452879,1730898646098,-151.0,0.00027671,7]
[341452880,1730898646109,-214.004586,0.00027671,7]
[341452881,1730898646119,-214.004586,0.00027671,7]
[341452882,1730898646129,-214.004586,0.00027671,7]
[341452883,1730898646140,-500.0,0.00027671,2]
[341452884,1730898646151,-311.91883422,0.00027671,2]
[341452885,1730898646163,-500.0,0.00027671,2]
[341452886,1730898646175,-500.0,0.00027671,2]
[341452887,1730898646186,-500.0,0.00027671,2]
[341452888,1730898646197,-527.61764638,0.00027671,2]
[341452889,1730898646209,-500.0,0.00027671,2]
[341452890,1730898646219,-500.0,0.00027671,2]
[341452891,1730898646231,-500.0,0.00027671,2]
[341452893,1730898646242,-500.0,0.00027671,2]
[341452895,1730898646252,-500.0,0.00027671,2]
[341452897,1730898646261,-440.97132462,0.00027671,2]
[341452900,1730898646272,-500.0,0.00027671,2]
[341452902,1730898646283,-623.8341087,0.00027671,2]
[341452904,1730898646294,-500.0,0.00027671,2]
[341452906,1730898646304,-679.8,0.00027671,2]
[341452908,1730898646314,-6904.55,0.00027671,2]
[341452909,1730898646324,-500.0,0.00027671,2]
[341452910,1730898646335,-579.62626999,0.00027671,2]
[341452911,1730898646344,-505.03429272,0.00027671,2]
[341452912,1730898646354,-500.0,0.00027671,2]
[341452913,1730898646364,-500.0,0.00027671,2]
[341452914,1730898646373,-520.70841967,0.00027671,2]
[341452916,1730898646384,-1750.39,0.00027671,2]
[341452918,1730898646396,-612.62,0.00027671,2]
[341452919,1730898646406,-1051.04,0.00027671,2]
[341452920,1730898646416,-500.0,0.00027671,2]
[341452921,1730898646427,-500.0,0.00027671,2]
[341452922,1730898646436,-500.0,0.00027671,2]
[341452923,1730898646446,-500.0,0.00027671,2]
[341452924,1730898646455,-500.0,0.00027671,2]
[341452925,1730898646467,-151.0,0.00027671,7]
[341452926,1730898646476,-151.0,0.00027671,7]
[341452927,1730898646488,-151.0,0.00027671,7]
[341452928,1730898646498,-500.0,0.00027671,2]
[341452929,1730898646507,-163.238076,0.00027671,7]
[341452930,1730898646516,-500.0,0.00027671,2]
[341452931,1730898646526,-500.0,0.00027671,2]
[341452932,1730898646535,-432.25517574,0.00027671,2]
[341452933,1730898646544,-500.0,0.00027671,2]
[341452934,1730898646554,-500.0,0.00027671,2]
[341452935,1730898646563,-500.0,0.00027671,2]
[341452936,1730898646573,-500.0,0.00027671,2]
[341452937,1730898646583,-500.0,0.00027671,2]
[341452938,1730898646593,-500.0,0.00027671,2]
[341452939,1730898646602,-505.03513103,0.00027671,2]
[341452940,1730898646612,-5743.15,0.00027671,2]
[341452941,1730898646621,-505.05507572,0.00027671,2]
[341452942,1730898646631,-500.0,0.00027671,2]
[341452943,1730898646641,-500.0,0.00027671,2]
[341452944,1730898646650,-500.0,0.00027671,2]
[341452945,1730898646660,-500.0,0.00027671,2]
[341452946,1730898646669,-1016.99,0.00027671,2]
[341452947,1730898646679,-514.89033968,0.00027671,2]
[341452948,1730898646688,-152.22,0.00027671,2]
[341452949,1730898646697,-506.33631443,0.00027671,2]
[341452950,1730898646708,-497.22879591,0.00027671,2]
[341452951,1730898646718,-500.0,0.00027671,2]
[341452952,1730898646729,-537.46616543,0.00027671,2]
[341452953,1730898646739,-500.0,0.00027671,2]
[341452954,1730898646750,-500.0,0.00027671,2]
[341452956,1730898646764,-500.0,0.00027671,2]
[341452958,1730898646773,-500.0,0.00027671,2]
[341452960,1730898646783,-500.0,0.00027671,2]
[341452961,1730898646793,-294.171074,0.00027671,7]
[341452962,1730898646803,-294.171074,0.00027671,7]
[341452963,1730898646814,-294.171074,0.00027671,7]
[341452964,1730898646823,-500.0,0.00027671,2]
[341452965,1730898646914,-294.171074,0.00027671,7]
[341452966,1730898646933,-294.171074,0.00027671,7]
[341452967,1730898646943,-294.171074,0.00027671,7]
[341452968,1730898646953,-500.0,0.00027671,2]
[341452969,1730898646963,-500.0,0.00027671,2]
[341452970,1730898646974,-500.0,0.00027945,2]
[341452971,1730898646983,-500.0,0.00027945,2]
[341452972,1730898646993,-151.0,0.00027945,7]
[341452973,1730898647002,-364.50117229,0.00027945,2]
[341452974,1730898647012,-500.0,0.00027945,2]
[341452975,1730898647022,-513.60240057,0.00027945,2]
[341452976,1730898647032,-500.0,0.00027945,2]
[341452977,1730898647041,-500.0,0.00027945,2]
[341452978,1730898647052,-500.0,0.00027945,2]
[341452979,1730898647061,-166.05576297,0.00027945,2]
[341452980,1730898647072,-500.0,0.00027945,2]
[341452981,1730898647081,-500.0,0.00027945,2]
[341452982,1730898647092,-524.55694049,0.00027945,2]
[341452983,1730898647101,-500.0,0.00027945,2]
[341452984,1730898647110,-511.72303551,0.00027945,2]
[341452985,1730898647121,-500.0,0.00027945,2]
[341452986,1730898647130,-500.0,0.00027945,2]
[341452987,1730898647140,-216.01366,0.00027945,7]
[341452988,1730898647149,-216.013652,0.00027945,7]
[341452989,1730898647158,-500.0,0.00027945,2]
[341452990,1730898647168,-500.0,0.00027945,2]
[341452991,1730898647177,-509.53830088,0.00027945,2]
[341452992,1730898647186,-500.0,0.00027945,2]
[341452993,1730898647195,-500.0,0.00027945,2]
[341452994,1730898647204,-796.51,0.00027945,2]
[341452995,1730898647214,-500.0,0.00027945,2]
[341452996,1730898647223,-500.0,0.00027945,2]
[341452997,1730898647232,-151.0,0.00027945,7]
[341452998,1730898647241,-500.0,0.00027945,2]
[341452999,1730898647250,-508.56068321,0.00027945,2]
[341453000,1730898647260,-879.0,0.00027945,2]
[341453001,1730898647269,-500.0,0.00027945,2]
[341453002,1730898647278,-230.73400026,0.00027945,2]
[341453003,1730898647287,-500.0,0.00027945,2]
[341453004,1730898647296,-633.11,0.00027945,2]
[341453005,1730898647306,-214.004586,0.00027945,7]
[341453006,1730898647315,-151.0,0.00027945,7]
[341453007,1730898647324,-214.004576,0.00027945,7]
[341453008,1730898647333,-500.0,0.00027945,2]
[341453009,1730898647343,-500.0,0.00027945,2]
[341453010,1730898647352,-500.0,0.00027945,2]
[341453011,1730898647361,-507.16685945,0.00027945,2]
[341453012,1730898647372,-510.85079377,0.00027945,2]
[341453013,1730898647381,-500.0,0.00027945,2]
[341453014,1730898647391,-679.8,0.00027945,2]
[341453015,1730898647401,-6904.55,0.00027945,2]
[341453016,1730898647410,-1750.39,0.00027945,2]
[341453017,1730898647420,-612.62,0.00027945,2]
[341453018,1730898647429,-1051.04,0.00027945,2]
[341453019,1730898647438,-500.0,0.00027945,2]
[341453020,1730898647447,-500.0,0.00027945,2]
[341453021,1730898647457,-500.0,0.00027945,2]
[341453022,1730898647468,-151.0,0.00027945,7]
[341453023,1730898647477,-500.0,0.00027945,2]
[341453024,1730898647486,-500.0,0.00027945,2]
[341453025,1730898647495,-5743.15,0.00027945,2]
[341453026,1730898647505,-1016.99,0.00027945,2]
[341453027,1730898647514,-500.0,0.00027945,2]
[341453028,1730898647523,-500.0,0.00027945,2]
[341453029,1730898647533,-500.0,0.00027945,2]
[341453030,1730898647542,-294.171074,0.00027945,7]
[341453031,1730898647554,-500.0,0.00027945,2]
[341453032,1730898647563,-294.171084,0.00027945,7]
[341453033,1730898647572,-707.52114608,0.00027948,2]
[341453034,1730898647581,-500.0,0.00027973,5]
[341453035,1730898647590,-151.0,0.00027982,7]
[341453036,1730898647599,-179.255,0.00028187,19]
[341453037,1730898647609,-500.0,0.00028219,2]
[341453038,1730898647618,-500.0,0.00028219,2]
[341453039,1730898647627,-796.51,0.00028219,2]
[341453040,1730898647637,-500.0,0.00028219,2]
[341453041,1730898647647,-879.0,0.00028219,2]
[341453042,1730898647656,-500.0,0.00028219,2]
[341453043,1730898647666,-500.0,0.00028219,2]
[341453044,1730898647675,-633.11,0.00028219,2]
[341453045,1730898647684,-500.0,0.00028219,2]
[341453046,1730898647693,-679.8,0.00028219,2]
[341453047,1730898647703,-6904.55,0.00028219,2]
[341453048,1730898647713,-1750.39,0.00028219,2]
[341453049,1730898647724,-612.62,0.00028219,2]
[341453050,1730898647735,-1051.04,0.00028219,2]
[341453051,1730898647744,-500.0,0.00028219,2]
[341453052,1730898647753,-500.0,0.00028219,2]
[341453053,1730898647766,-588.09940223,0.00028219,2]